bitfinex/quotes_ETHUSD_20250403
["timestamp","ask_amount","ask_price","bid_price","bid_amount"]
[1743695205305,11.62637,1779.0,1778.1,5.62373]
[1743695205306,5.62256,1778.6,1778.1,5.62373]
[1743695205512,11.62681,1778.5,1778.0,6.42533]
[1743695205836,6.44848,1778.4,1778.0,5.62423]
[1743695206217,6.44848,1778.4,1777.9,11.24904]
[1743695206424,0.8254,1778.4,1778.0,6.749004]
[1743695206611,0.8254,1778.4,1778.0,5.6241]
[1743695206936,5.62352,1778.3,1777.8,13.758851]
[1743695207136,11.24713,1778.3,1777.8,7.648851]
[1743695207337,0.7857,1778.1,1777.8,1.250261]
[1743695207657,0.7857,1778.1,1777.8,5.62483]
[1743695207809,6.7897,1778.1,1777.5,5.80137699]
[1743695208011,5.62461,1777.9,1777.5,0.17579699]
[1743695208215,6.38573,1777.8,1777.5,0.17579699]
[1743695208409,11.62927,1777.7,1777.5,0.17579699]
[1743695208738,6.004,1777.7,1777.3,5.62648]
[1743695209043,11.62932,1777.7,1777.3,1.125326]
[1743695209211,11.62932,1777.7,1777.3,6.751776]
[1743695209411,6.004,1777.7,1777.3,6.751776]
[1743695209714,6.004,1777.7,1777.3,12.378076]
[1743695210521,6.004,1777.7,1777.5,5.62584]
[1743695210711,6.004,1777.7,1777.5,6.188314]
[1743695211112,6.004,1777.7,1777.4,5.62615]
[1743695211632,6.004,1777.7,1777.3,6.751836]
[1743695211838,11.62926,1777.7,1777.3,1.125326]
[1743695212213,11.62926,1777.7,1777.2,5.62677]
[1743695212409,5.62569,1777.6,1777.1,6.48928]
[1743695212614,6.42438,1777.5,1777.1,5.67708]
[1743695212844,0.7984,1777.5,1777.2,5.62652]
[1743695213022,0.7984,1777.5,1777.3,5.62646]
[1743695213224,0.7984,1777.5,1777.2,5.62652]
[1743695213424,0.7984,1777.5,1777.2,12.38354]
[1743695213629,0.7984,1777.5,1777.2,6.75689]
[1743695214148,0.7984,1777.5,1777.2,1.13036]
[1743695214530,0.7984,1777.5,1777.1,0.05]
[1743695214531,3.7984,1777.5,1777.1,0.05]
[1743695214719,9.42438,1777.5,1777.1,0.05]
[1743695214921,6.4378,1777.4,1777.1,0.05]
[1743695215121,11.63173,1777.3,1777.1,0.05]
[1743695215348,13.606393,1777.2,1777.1,0.05]
[1743695216347,7.979573,1777.2,1777.1,0.05]
[1743695217247,16.606393,1777.2,1777.1,0.05]
[1743695217550,17.156393,1777.2,1777.1,0.05]
[1743695218248,17.58019169,1777.2,1777.1,0.05]
[1743695220452,17.60933407,1777.2,1777.1,0.05]
[1743695221729,11.60433407,1777.2,1777.1,0.05]
[1743695221948,17.60933407,1777.2,1777.1,0.05]
[1743695224035,6.4498,1776.5,1776.1,0.05]
[1743695224239,12.4548,1776.5,1776.1,0.05]
[1743695224548,0.02914238,1776.4,1776.1,5.68021]
[1743695224753,0.02914238,1776.4,1776.3,5.62967]
[1743695225138,0.02914238,1776.4,1776.2,6.42398]
[1743695225319,0.02914238,1776.4,1776.2,6.42395]
[1743695225521,0.02914238,1776.4,1776.3,5.62967]
[1743695229518,0.02914238,1776.4,1776.2,6.42395]
[1743695229751,0.02914238,1776.4,1776.2,5.62985]
[1743695229953,0.02914238,1776.4,1776.1,5.68029]
[1743695230146,0.02914238,1776.4,1776.2,5.62986]
[1743695230855,0.02914238,1776.4,1776.1,5.6802]
[1743695231069,0.02914238,1776.4,1776.2,5.6297]
[1743695231223,0.02914238,1776.4,1776.3,5.62967]
[1743695233154,0.02914238,1776.4,1776.2,5.6297]
[1743695233724,0.02914238,1776.4,1776.2,11.25956]
[1743695234023,0.02914238,1776.4,1776.3,5.62967]
[1743695235625,0.02914238,1776.4,1776.2,5.6297]
[1743695236053,0.02914238,1776.4,1776.2,11.25956]
[1743695236358,0.02914238,1776.4,1776.2,5.6297]
[1743695237043,0.02914238,1776.4,1776.2,11.2596]
[1743695237247,0.02914238,1776.4,1776.1,5.68021]
[1743695237459,6.46179,1776.3,1776.1,0.05]
[1743695237623,6.004,1776.2,1776.1,0.05]
[1743695240746,6.004,1776.2,1776.1,5.68031]
[1743695240964,9.8033,1776.5,1776.2,5.62987]
[1743695241184,9.8033,1776.5,1776.2,11.25972]
[1743695241361,6.004,1776.5,1776.4,5.62936]
[1743695241672,12.45849,1776.5,1776.1,6.46344]
[1743695241862,12.45849,1776.5,1776.1,5.68024]
[1743695241863,1.245849,1776.4,1776.1,5.68024]
[1743695242059,4.245849,1776.4,1776.1,0.05]
[1743695242259,5.62972,1776.3,1776.1,0.05]
[1743695242466,9.875209,1776.4,1776.1,0.05]
[1743695243048,0.8183,1776.3,1776.1,0.05]
[1743695243265,6.44809,1776.3,1776.1,0.05]
[1743695243465,0.644809,1776.2,1776.1,0.05]
[1743695245043,6.274799,1776.2,1776.1,0.05]
[1743695247575,0.644809,1776.2,1776.1,0.05]
[1743695249367,3.8183,1776.3,1776.1,0.05]
[1743695249968,9.44811,1776.3,1776.1,0.05]
[1743695250279,3.8183,1776.3,1776.1,0.05]
[1743695250466,9.448,1776.3,1776.1,0.05]
[1743695251058,11.63299,1776.2,1776.1,0.05]
[1743695251390,7.45722646,1776.2,1776.1,0.05]
[1743695251598,6.003,1776.2,1776.1,0.05]
[1743695254397,6.003,1776.2,1776.1,0.22599563]
[1743695254752,11.63299,1776.2,1776.1,0.22599563]
[1743695254970,14.63299,1776.2,1776.1,0.22599563]
[1743695255275,15.41339,1776.2,1776.1,0.22599563]
[1743695255595,18.78322945,1776.2,1776.1,0.22599563]
[1743695255804,18.78322945,1776.2,1776.1,0.05]
[1743695255948,22.16122945,1776.2,1776.1,0.05]
[1743695256144,9.99334,1775.9,1775.8,0.17599563]
[1743695256378,19.94052446,1775.9,1775.8,0.17599563]
[1743695256561,21.58169388,1775.9,1775.8,0.17599563]
[1743695256956,6.4447,1775.5,1775.2,0.17599563]
[1743695257149,6.001,1775.4,1775.2,0.17599563]
[1743695257591,6.001,1775.4,1775.2,5.80911563]
[1743695257774,6.001,1775.4,1775.2,0.17599563]
[1743695258171,12.796894,1775.4,1775.2,0.17599563]
[1743695258351,18.429704,1775.4,1775.2,0.17599563]
[1743695258551,5.63285,1775.3,1775.2,0.17599563]
[1743695259380,5.63285,1775.3,1775.1,0.05]
[1743695259681,6.44285,1775.3,1775.1,0.05]
[1743695259879,11.09937545,1775.3,1775.1,0.05]
[1743695260071,16.73246545,1775.3,1775.1,0.05]
[1743695260261,11.09937545,1775.3,1775.1,0.05]
[1743695260652,8.63316,1775.2,1775.1,0.05]
[1743695261049,3.0,1775.2,1775.1,0.05]
[1743695261250,10.27432942,1775.2,1775.1,0.05]
[1743695262087,13.68854427,1775.2,1775.1,0.05]
[1743695262496,14.49604427,1775.2,1775.1,0.05]
[1743695264871,17.08382942,1775.2,1775.1,0.05]
[1743695265365,15.44266,1775.2,1775.1,0.05]
[1743695265560,7.28937545,1775.3,1775.1,0.05]
[1743695265786,6.002,1775.2,1775.1,0.05]
[1743695265961,11.63516,1775.2,1775.1,0.05]
[1743695266661,6.002,1775.2,1775.1,0.05]
[1743695266864,11.63516,1775.2,1775.1,0.05]
[1743695267063,7.97711355,1775.2,1775.1,0.05]
[1743695267962,13.61027355,1775.2,1775.1,0.05]
[1743695270199,7.97711355,1775.2,1775.1,0.05]
[1743695270990,13.61027355,1775.2,1775.1,0.05]
[1743695271395,7.97711355,1775.2,1775.1,0.05]
[1743695272213,3.0,1775.3,1775.1,0.05]
[1743695272378,3.0,1775.3,1775.1,6.48709]
[1743695272808,9.001,1775.3,1775.1,6.48709]
[1743695273110,14.63386,1775.3,1775.1,0.8537]
[1743695273310,11.027651,1775.3,1775.1,0.05]
[1743695273505,14.63398,1775.3,1775.1,0.05]
[1743695273680,5.63316,1775.2,1775.1,0.05]
[1743695274111,8.63316,1775.2,1775.1,0.05]
[1743695276689,3.0,1775.2,1775.1,0.05]
[1743695277884,6.001,1775.3,1775.1,0.8487]
[1743695278425,6.0,1775.5,1775.2,5.63299]
[1743695278623,10.46100887,1775.5,1775.1,0.8487]
[1743695278818,5.63296,1775.3,1775.1,0.8487]
[1743695279020,9.87257485,1775.3,1775.1,0.05]
[1743695279187,5.63316,1775.2,1775.1,0.05]
[1743695283526,6.45836,1775.3,1775.1,0.05]
[1743695283701,5.63259,1775.4,1775.1,0.05]
[1743695283913,5.999,1775.3,1775.1,0.05]
[1743695284236,12.49398314,1775.5,1775.2,6.41953]
[1743695284237,5.999,1775.5,1775.2,6.41953]
[1743695285056,5.999,1775.5,1775.2,12.05255]
[1743695285242,40.544,1775.6,1775.4,5.63253]
[1743695285540,40.544,1775.6,1775.5,0.8063]
[1743695286658,51.80811,1775.6,1775.2,6.41336]
[1743695286840,5.63223,1775.5,1775.2,0.7803]
[1743695287359,51.8082,1775.6,1775.2,0.7803]
[1743695287660,46.17601,1775.6,1775.2,0.95635751]
[1743695287825,40.544,1775.6,1775.2,6.58935751]
[1743695288013,40.544,1775.6,1775.3,5.63283]
[1743695288215,40.544,1775.6,1775.5,5.63221]
[1743695288411,5.63063,1776.0,1775.6,5.63179]
[1743695288606,5.63162,1775.7,1775.5,0.95815751]
[1743695288848,5.63162,1775.7,1775.5,0.17605751]
[1743695289050,9.80909485,1775.8,1775.5,0.17605751]
[1743695289236,0.98090949,1775.7,1775.5,0.17605751]
[1743695289433,6.61259949,1775.7,1775.5,0.17605751]
[1743695289944,6.61259949,1775.7,1775.3,6.59098751]
[1743695290145,6.61259949,1775.7,1775.4,3.0]
[1743695290351,12.24445949,1775.7,1775.3,3.95815751]
[1743695290551,0.98090949,1775.7,1775.4,3.0]
[1743695290853,0.98090949,1775.7,1775.4,8.63251]
[1743695291015,6.61261949,1775.7,1775.4,3.0]
[1743695291216,0.66126195,1775.6,1775.3,6.41473]
[1743695291429,5.996,1775.5,1775.3,6.41473]
[1743695291721,5.996,1775.5,1775.3,3.7821]
[1743695292247,5.996,1775.5,1775.3,0.7821]
[1743695292661,5.996,1775.5,1775.3,6.41493]
[1743695292828,5.996,1775.5,1775.3,0.7821]
[1743695293033,5.996,1775.5,1775.3,12.04742]
[1743695293226,5.996,1775.5,1775.4,5.63253]
[1743695293446,11.26302,1775.8,1775.4,5.63253]
[1743695293655,6.39416,1775.6,1775.1,6.49143]
[1743695293854,6.39416,1775.6,1775.5,0.17607598]
[1743695294168,5.63196,1775.6,1775.2,0.07410881]
[1743695294323,5.63196,1775.6,1775.3,0.03148437]
[1743695295070,5.63196,1775.6,1775.3,0.03148418]
[1743695295229,7.4705512,1775.6,1775.4,0.03148241]
[1743695295418,1.8385912,1775.6,1775.4,0.03148241]
[1743695295624,7.122302,1775.7,1775.4,6.48883241]
[1743695295933,5.995,1775.6,1775.4,12.12125241]
[1743695296381,5.995,1775.6,1775.4,6.48880241]
[1743695296938,5.995,1775.6,1775.4,6.48887241]
[1743695297134,5.995,1775.6,1775.4,12.12128241]
[1743695297337,5.995,1775.7,1775.5,5.63221]
[1743695297561,5.995,1775.9,1775.6,5.63164]
[1743695297724,11.62596,1775.9,1775.5,9.04637485]
[1743695297921,5.63172,1775.7,1775.4,0.03148241]
[1743695298126,6.41354,1775.8,1775.4,5.66395241]
[1743695298363,12.04499,1775.8,1775.4,5.66395241]
[1743695298563,5.6316,1775.7,1775.4,0.03148241]
[1743695298866,5.63191,1775.6,1775.4,0.03148241]
[1743695299157,11.62621,1775.5,1775.4,0.03148241]
[1743695299325,12.45781,1775.5,1775.4,0.03148241]
[1743695299958,5.994,1775.5,1775.4,0.03148241]
[1743695300163,5.994,1775.7,1775.5,5.63201]
[1743695300365,5.994,1775.7,1775.6,5.63189]
[1743695300674,5.994,1775.7,1775.5,11.26413]
[1743695300883,5.994,1775.9,1775.7,5.63145]
[1743695301064,5.994,1775.9,1775.7,6.40595]
[1743695301395,5.994,1775.9,1775.7,6.40594]
[1743695301735,5.994,1775.9,1775.7,0.7745]
[1743695302034,5.994,1775.9,1775.7,6.40605]
[1743695303162,5.994,1775.9,1775.7,0.7745]
[1743695303383,5.63063,1776.0,1775.7,0.7745]
[1743695303566,5.993,1775.9,1775.7,6.40601]
[1743695303965,5.993,1775.9,1775.7,0.7745]
[1743695304480,5.993,1775.9,1775.7,6.40606]
[1743695304770,5.993,1775.9,1775.7,0.7745]
[1743695305353,5.993,1775.9,1775.7,6.40596]
[1743695305758,5.993,1775.9,1775.7,0.7745]
[1743695305959,5.993,1775.9,1775.7,6.40603]
[1743695306651,5.993,1775.9,1775.8,5.63126]
[1743695306839,8.992,1776.2,1775.9,5.63065]
[1743695307161,8.992,1776.2,1775.9,6.38865]
[1743695308150,8.992,1776.2,1775.9,6.08475931]
[1743695308472,8.992,1776.2,1776.0,5.63061]
[1743695308871,8.992,1776.2,1775.9,6.08475931]
[1743695309459,8.992,1776.2,1776.0,5.63062]
[1743695309664,8.992,1776.2,1775.9,11.71555931]
[1743695309982,8.992,1776.2,1775.9,6.08475931]
[1743695310191,14.62209,1776.2,1775.9,0.758]
[1743695310540,8.992,1776.2,1775.8,3.41421485]
[1743695310741,6.40264,1776.1,1775.7,6.40153]
[1743695310980,6.40263,1776.1,1775.7,6.40145]
[1743695311475,6.40263,1776.1,1775.7,12.03293]
[1743695311670,14.62201,1776.2,1775.8,11.26233]
[1743695312055,14.62199,1776.2,1775.9,5.63089]
[1743695312260,14.62199,1776.2,1775.8,5.63112]
[1743695312261,20.25224,1776.2,1775.8,5.63112]
[1743695312455,5.63034,1776.1,1775.7,12.03302]
[1743695312673,20.25228,1776.2,1775.8,5.63123]
[1743695312856,5.63041,1776.1,1775.7,12.03288]
[1743695313050,8.992,1776.2,1775.8,5.63122]
[1743695313250,8.992,1776.2,1775.9,11.26158]
[1743695313449,8.992,1776.2,1776.0,9.82904485]
[1743695313450,5.992,1776.2,1776.0,9.82904485]
[1743695314260,0.7512,1776.1,1775.8,5.63124]
[1743695314662,5.992,1776.2,1775.7,3.41421485]
[1743695314866,40.565,1776.3,1776.2,0.7725]
[1743695315265,40.565,1776.3,1776.1,9.80984485]
[1743695315469,40.565,1776.3,1776.1,11.35389033]
[1743695315670,40.565,1776.3,1776.2,5.62999]
[1743695316283,40.565,1776.3,1776.1,11.35389033]
[1743695316496,40.565,1776.3,1776.1,2.30964548]
[1743695316673,40.565,1776.3,1776.1,12.02607]
[1743695316866,3.0,1776.7,1776.2,6.38979]
[1743695316867,8.62841,1776.7,1776.2,6.38979]
[1743695317072,8.62841,1776.7,1776.3,9.04375485]
[1743695317277,5.62905,1776.5,1776.2,0.7598]
[1743695317581,0.562905,1776.4,1776.1,6.4171]
[1743695317752,5.62908,1776.5,1776.2,5.62998]
[1743695317952,5.988,1776.4,1776.1,12.04729]
[1743695318349,5.988,1776.4,1776.1,6.41699]
[1743695318555,5.988,1776.4,1776.1,12.04715]
[1743695318974,5.988,1776.4,1776.2,5.62988]
[1743695319377,5.988,1776.4,1776.1,6.41696]
[1743695319789,5.988,1776.4,1776.2,5.62999]
[1743695319984,5.988,1776.4,1776.2,11.25982]
[1743695320286,5.987,1776.5,1776.3,5.6295]
[1743695320589,5.987,1776.5,1776.3,11.25902]
[1743695320765,5.987,1776.6,1776.3,11.25902]
[1743695321354,5.987,1776.6,1776.3,5.6295]
[1743695321966,11.61587,1776.6,1776.2,5.62998]
[1743695322287,17.24489,1776.6,1776.2,5.62998]
[1743695322489,6.45692,1776.5,1776.1,6.417]
[1743695322880,6.45692,1776.5,1776.1,12.04714]
[1743695323078,0.7721,1776.9,1776.2,3.41421485]
[1743695323282,6.40091,1776.6,1776.2,9.04416485]
[1743695323456,7.903796,1776.6,1776.1,6.4169]
[1743695323661,7.903796,1776.6,1776.2,5.62983]
[1743695324092,7.903796,1776.6,1776.2,11.25967]
[1743695324282,2.275046,1776.6,1776.3,5.62959]
[1743695324593,7.903916,1776.6,1776.1,6.59300681]
[1743695324787,1.502946,1776.6,1776.3,5.62952]
[1743695324988,9.40302,1776.7,1776.3,5.62952]
[1743695325193,15.03166,1776.7,1776.3,5.62952]
[1743695325489,41.343,1777.1,1776.6,3.41421485]
[1743695325657,47.329,1777.1,1776.8,3.41421485]
[1743695325860,5.62636,1777.4,1776.9,5.62765]
[1743695325861,0.797,1777.3,1776.9,5.62765]
[1743695326058,0.7781,1777.8,1777.4,5.62594]
[1743695326293,0.7781,1777.8,1777.5,5.62575]
[1743695326459,0.7781,1777.8,1777.4,9.04037485]
[1743695326665,5.62535,1777.7,1777.3,5.62648]
[1743695327062,5.62573,1777.6,1777.2,4.24681485]
[1743695327286,5.62591,1777.5,1777.2,0.8326]
[1743695327486,5.62591,1777.5,1777.1,5.62711]
[1743695327487,6.41331,1777.5,1777.1,5.62702]
[1743695327665,6.41331,1777.5,1777.0,9.84195485]
[1743695327994,7.054641,1777.5,1777.1,5.62709]
[1743695328363,5.62628,1777.4,1777.0,9.84183485]
[1743695328565,7.054631,1777.5,1777.1,5.62713]
[1743695328768,7.054631,1777.5,1777.1,5.62697]
[1743695328965,1.428731,1777.5,1777.1,5.62697]
[1743695329176,12.680861,1777.5,1777.0,15.46939485]
[1743695329376,5.62629,1777.4,1777.0,9.84181485]
[1743695329692,5.62629,1777.4,1777.0,9.84179485]
[1743695329880,5.62654,1777.3,1777.0,3.41421485]
[1743695330083,11.60954,1777.3,1776.9,0.7773]
[1743695330399,6.39976,1777.2,1776.8,9.81956485]
[1743695330891,6.39976,1777.2,1776.8,9.81949485]
[1743695331096,0.7728,1777.2,1776.9,5.62776]
[1743695332098,8.200554,1777.2,1776.8,9.81949485]
[1743695332261,1.800914,1777.2,1776.9,5.62761]
[1743695332466,12.42984,1777.3,1776.9,5.62761]
[1743695332698,12.42984,1777.3,1776.9,11.25527]
[1743695332899,12.42984,1777.3,1776.9,5.62761]
[1743695333267,11.60954,1777.3,1776.9,11.25525]
[1743695333591,5.983,1777.3,1777.0,3.41421485]
[1743695333794,5.983,1777.3,1777.0,9.04151485]
[1743695334026,5.983,1777.3,1777.1,5.6271]
[1743695334199,5.983,1777.3,1777.1,6.3787]
[1743695335380,3.0,1777.5,1777.2,9.04078485]
[1743695336204,8.62595,1777.5,1777.2,3.41421485]
[1743695336405,3.0,1777.5,1777.2,9.04102485]
[1743695336790,6.40789,1777.4,1777.0,9.79671485]
[1743695337296,0.7816,1777.4,1777.1,5.62702]
[1743695337805,0.7816,1777.4,1777.1,5.62701]
[1743695338175,0.7816,1777.4,1777.1,11.25405]
[1743695338496,10.649303,1777.5,1777.1,5.62701]
[1743695338685,10.649303,1777.5,1777.0,9.79666485]
[1743695338888,5.023243,1777.5,1777.2,5.6267]
[1743695339082,10.649143,1777.5,1777.1,11.25415]
[1743695339285,16.275263,1777.5,1777.1,5.62702]
[1743695339479,5.6263,1777.4,1777.0,10.77641134]
[1743695339679,16.275143,1777.5,1777.0,10.77627134]
[1743695339880,10.649143,1777.5,1777.1,5.62709]
[1743695340080,5.6262,1777.4,1777.0,9.79660485]
[1743695340281,6.44855,1777.3,1776.9,9.04186485]
[1743695340493,0.822,1777.3,1777.0,5.62715]
[1743695340696,17.097203,1777.5,1777.1,5.62712]
[1743695340989,8.471133,1777.5,1777.1,14.66835485]
[1743695341314,5.62638,1777.4,1777.1,3.41421485]
[1743695341478,6.44788,1777.5,1777.1,9.04133485]
[1743695341682,12.07396,1777.5,1777.1,9.04133485]
[1743695341914,12.07393,1777.5,1777.1,9.04133485]
[1743695342282,5.62557,1777.6,1777.3,5.62647]
[1743695342486,3.7514,1777.7,1777.4,5.62608]
[1743695342811,0.05,1777.9,1777.5,5.6257]
[1743695342812,12.424,1777.9,1777.5,5.6257]
[1743695343315,5.6251,1777.8,1777.4,5.62615]
[1743695343481,5.6251,1777.8,1777.4,5.62606]
[1743695343681,5.6251,1777.8,1777.4,11.25215]
[1743695343881,6.7993,1777.9,1777.5,3.47047085]
[1743695344111,0.8213,1777.9,1777.6,5.62547]
[1743695344326,6.028,1777.9,1777.6,5.62543]
[1743695344483,0.05,1777.9,1777.6,6.38293]
[1743695344998,0.05,1777.9,1777.6,0.7575]
[1743695345205,0.05,1777.9,1777.6,6.38295]
[1743695345392,5.67466,1777.9,1777.6,0.7575]
[1743695345589,0.05,1777.9,1777.6,7.92522449]
[1743695345794,0.05,1777.9,1777.7,9.03944485]
[1743695345990,0.05,1777.9,1777.8,5.62492]
[1743695346791,0.05,1777.9,1777.8,6.42042]
[1743695349114,0.05,1777.9,1777.8,5.62492]
[1743695350288,0.05,1777.9,1777.8,7.13448674]
[1743695350817,0.05,1777.9,1777.8,7.95933069]
[1743695351692,0.05,1777.9,1777.8,8.07886054]
[1743695352398,0.05,1777.9,1777.8,8.13509707]
[1743695352608,0.05,1777.9,1777.8,8.07886054]
[1743695353005,0.05,1777.9,1777.8,8.13509694]
[1743695353321,0.05,1777.9,1777.8,11.07886054]
[1743695354056,0.55,1778.6,1778.4,11.24581]
[1743695354356,0.55,1778.6,1778.5,1.124581]
[1743695355221,0.55,1778.6,1778.4,9.03722485]
[1743695355427,0.55,1778.6,1778.4,3.41421485]
[1743695355722,0.55,1778.6,1778.4,14.66000485]
[1743695356024,0.55,1778.6,1778.5,5.62271]
[1743695356330,0.55,1778.6,1778.4,9.03710485]
[1743695356498,0.55,1778.6,1778.5,0.90371049]
[1743695357432,0.55,1778.6,1778.4,3.41421485]
[1743695357632,0.55,1778.6,1778.3,6.81840213]
[1743695357633,6.1724,1778.6,1778.3,5.62319]
[1743695357829,0.8293,1778.5,1778.2,14.66135485]
[1743695358006,0.8293,1778.5,1778.2,9.03774485]
[1743695358207,0.8293,1778.5,1778.2,5.62353]
[1743695358418,0.8293,1778.5,1778.3,5.62318]
[1743695358619,0.55,1778.6,1778.2,4.73666785]
[1743695358943,0.55,1778.6,1778.5,5.62271]
[1743695359301,0.55,1778.6,1778.5,6.38361]
[1743695359501,0.55,1778.6,1778.4,9.03706485]
[1743695359828,0.55,1778.6,1778.4,7.16497649]
[1743695361205,1.3096,1778.6,1778.4,7.16497649]
[1743695361629,1.3096,1778.6,1778.4,1.54212649]
[1743695361837,1.3096,1778.6,1778.3,5.62323]
[1743695362038,1.3096,1778.6,1778.4,5.6229]
[1743695362331,1.3096,1778.6,1778.4,5.62289]
[1743695362832,12.55483,1778.6,1778.2,6.185983]
[1743695363019,5.62284,1778.5,1778.1,21.60268485]
[1743695363226,5.62284,1778.5,1778.2,5.62365]
[1743695363424,12.90104,1778.6,1778.2,11.2473]
[1743695363736,5.62275,1778.5,1778.2,5.62365]
[1743695364736,5.62322,1778.4,1778.0,6.4381]
[1743695364912,0.7757,1778.3,1778.0,5.62416]
[1743695365126,0.7757,1778.3,1778.0,6.52799749]
[1743695365435,12.02282,1778.3,1777.9,9.03879485]
[1743695365931,12.02282,1778.3,1777.9,5.62458]
[1743695366133,5.969,1778.2,1777.9,5.62458]
[1743695366336,5.969,1778.2,1777.9,5.62448]
[1743695366536,5.969,1778.2,1778.0,5.62427]
[1743695366735,5.969,1778.2,1777.9,5.62448]
[1743695366939,5.969,1778.2,1778.0,9.03838485]
[1743695367147,0.7757,1778.3,1778.0,9.03838485]
[1743695367922,6.39906,1778.3,1778.0,5.62417]
[1743695368155,12.02258,1778.3,1777.9,15.71818101]
[1743695368531,6.39906,1778.3,1777.9,15.71808101]
[1743695368741,0.7757,1778.3,1778.1,5.62397]
[1743695368917,5.968,1778.4,1778.1,5.62397]
[1743695369108,5.968,1778.4,1778.2,5.62343]
[1743695369344,0.7568,1778.5,1778.2,5.62343]
[1743695369642,6.37956,1778.5,1778.2,6.52719449]
[1743695369827,0.7568,1778.5,1778.2,12.15074449]
[1743695370227,0.7568,1778.5,1778.2,6.52719449]
[1743695370433,6.37955,1778.5,1778.2,6.52719449]
[1743695370629,0.7568,1778.5,1778.2,6.52719449]
[1743695370840,6.37977,1778.5,1778.1,9.03813485]
[1743695371045,12.00276,1778.5,1778.1,9.03813485]
[1743695371212,5.62314,1778.4,1778.1,3.41421485]
[1743695371614,5.62314,1778.4,1778.0,11.24839]
[1743695371814,5.62314,1778.4,1778.1,5.62397]
[1743695372034,5.62314,1778.4,1778.0,12.8200431]
[1743695372232,5.62334,1778.3,1777.9,10.09363101]
[1743695372440,5.62334,1778.3,1777.8,0.8217]
[1743695372441,11.24815,1778.1,1777.7,9.03932485]
[1743695372647,5.624,1778.1,1777.7,9.03932485]
[1743695372965,11.24824,1778.1,1777.8,0.17578845]
[1743695373168,5.624,1778.1,1777.8,0.17578845]
[1743695373348,5.624,1778.1,1777.8,5.80066845]
[1743695373915,12.34281,1778.2,1777.9,5.62459]
[1743695374111,12.34281,1778.2,1777.8,11.42540845]
[1743695374341,6.7191,1778.2,1777.9,11.249]
[1743695374544,6.7191,1778.2,1777.9,5.6245]
[1743695374761,6.7191,1778.2,1778.0,5.62415]
[1743695374967,6.7191,1778.2,1777.9,9.03871485]
[1743695375166,6.7191,1778.2,1777.9,9.2145033]
[1743695375464,6.7191,1778.2,1777.9,10.84683586]
[1743695375867,17.96681,1778.2,1777.9,1.80812101]
[1743695376154,12.34285,1778.2,1777.9,0.17578845]
[1743695376349,5.62407,1778.1,1777.9,0.17578845]
[1743695376514,11.24821,1778.1,1777.9,0.17578845]
[1743695376715,5.62429,1778.0,1777.8,0.17578845]
[1743695377112,11.24876,1778.0,1777.8,0.17578845]
[1743695377313,0.8147,1777.9,1777.8,0.17578845]
[1743695377940,6.43931,1777.9,1777.8,0.17578845]
[1743695378217,0.8147,1777.9,1777.6,11.25095]
[1743695378417,0.8147,1777.9,1777.6,5.62541]
[1743695378919,6.43939,1777.9,1777.6,5.62541]
[1743695379159,5.62516,1777.8,1777.5,0.17578845]
[1743695379459,5.62516,1777.8,1777.6,0.17578845]
[1743695379460,6.38424,1777.7,1777.6,0.17578845]
[1743695379674,9.38424,1777.7,1777.6,0.17578845]
[1743695380273,9.38424,1777.7,1777.1,5.62703]
[1743695380274,5.62666,1777.3,1777.1,0.17578845]
[1743695380436,5.62666,1777.3,1777.1,1.17762678]
[1743695381360,5.62666,1777.3,1777.1,1.00183833]
[1743695381724,5.62666,1777.3,1777.0,4.21521485]
[1743695382257,5.62666,1777.3,1777.0,3.41421485]
[1743695382430,11.25408,1777.2,1776.8,9.80179485]
[1743695382623,5.62699,1777.2,1776.9,5.62773]
[1743695382958,6.7728,1777.4,1777.1,5.62711]
[1743695383160,12.3991,1777.4,1777.1,5.62711]
[1743695383353,12.3991,1777.4,1777.1,7.09398749]
[1743695383950,12.3991,1777.4,1777.1,1.46687749]
[1743695384148,5.62665,1777.3,1777.0,5.62745]
[1743695384484,6.7728,1777.4,1776.8,6.38761]
[1743695384625,6.42778,1777.0,1776.6,3.41421485]
[1743695384822,5.62788,1776.9,1776.6,9.04291485]
[1743695385054,5.62788,1776.9,1776.6,10.51008734]
[1743695385781,9.7663,1777.0,1776.3,5.62963]
[1743695385932,5.62899,1776.6,1776.2,6.40628]
[1743695386124,5.62899,1776.6,1776.2,12.03608]
[1743695386329,11.59499,1776.6,1776.2,12.03608]
[1743695386603,11.59499,1776.6,1776.2,6.4061]
[1743695386862,5.966,1776.6,1776.5,5.62904]
[1743695387157,0.8258,1776.8,1776.5,5.62894]
[1743695387376,5.966,1776.9,1776.6,5.62844]
[1743695387753,5.966,1776.9,1776.5,9.04322485]
[1743695387754,5.62813,1776.8,1776.5,9.04322485]
[1743695387943,5.62813,1776.8,1776.4,5.62931]
[1743695388125,5.62813,1776.8,1776.4,7.24365649]
[1743695388531,5.62813,1776.8,1776.4,12.87290649]
[1743695388731,5.62813,1776.8,1776.4,11.25856]
[1743695389131,11.59383,1776.9,1776.5,9.04320485]
[1743695389331,5.966,1776.9,1776.6,5.62872]
[1743695389750,5.966,1776.9,1776.7,5.62825]
[1743695390259,5.966,1776.9,1776.7,5.62824]
[1743695390462,5.966,1776.9,1776.8,5.62809]
[1743695390638,5.62685,1777.2,1776.8,6.753723]